bitfinex/quotes_BTCUSD_20250822
["timestamp","ask_amount","ask_price","bid_price","bid_amount"]
[1755874970790,0.0001522,116510.0,116500.0,1.75081603]
[1755874970965,0.0001522,116510.0,116500.0,1.90081603]
[1755874971166,0.5,116520.0,116510.0,0.9291081]
[1755874971418,0.5,116520.0,116510.0,5.68881317]
[1755874971985,0.5,116520.0,116510.0,5.23156817]
[1755874972231,0.10393739,116520.0,116510.0,4.68775985]
[1755874972443,0.0085,116550.0,116540.0,0.91161489]
[1755874972645,0.00864458,116550.0,116540.0,3.78822398]
[1755874972836,0.00864458,116550.0,116540.0,2.61451898]
[1755874973050,0.00814458,116550.0,116540.0,2.41960522]
[1755874973253,0.00814458,116550.0,116540.0,2.41084524]
[1755874973656,0.00814458,116550.0,116540.0,2.40298924]
[1755874973997,0.00814458,116550.0,116540.0,1.93381492]
[1755874974430,0.00814458,116550.0,116540.0,2.39448924]
[1755874974637,0.00814458,116550.0,116540.0,2.32310724]
[1755874974916,0.00814458,116550.0,116540.0,2.15534724]
[1755874975126,0.00814458,116550.0,116540.0,2.13217624]
[1755874975622,0.00032545,116580.0,116560.0,0.34]
[1755874975827,0.00032545,116580.0,116570.0,0.08688475]
[1755874976027,0.00044949,116580.0,116570.0,0.08688475]
[1755874976288,0.00096949,116580.0,116570.0,0.08688475]
[1755874976739,0.00012404,116580.0,116570.0,1.47317485]
[1755874976909,0.00112404,116580.0,116570.0,1.47317485]
[1755874977341,0.00164404,116580.0,116570.0,1.27317485]
[1755874977477,0.00064404,116580.0,116570.0,1.10549485]
[1755874977654,0.00164404,116580.0,116570.0,0.63632053]
[1755874977858,0.00164404,116580.0,116570.0,0.80396053]
[1755874978271,0.00112404,116580.0,116570.0,1.27309485]
[1755874978704,0.00112404,116580.0,116570.0,0.80392053]
[1755874978880,0.00112404,116580.0,116570.0,1.27309485]
[1755874979083,0.00012404,116580.0,116570.0,1.27309485]
[1755874979370,0.00064404,116580.0,116570.0,0.93392412]
[1755874979561,0.00064404,116580.0,116570.0,0.66763436]
[1755874979767,0.00064404,116580.0,116570.0,0.50003436]
[1755874979969,0.00064404,116580.0,116570.0,1.28256041]
[1755874980171,0.00064404,116580.0,116570.0,0.66759536]
[1755874980739,0.00064404,116580.0,116570.0,1.13676968]
[1755874981158,0.00064404,116580.0,116570.0,1.30834041]
[1755874981379,0.00012404,116580.0,116570.0,1.30834041]
[1755874981781,0.00012404,116580.0,116570.0,1.31359041]
[1755874982623,0.00012404,116580.0,116570.0,0.84441609]
[1755874982827,0.00012404,116580.0,116570.0,1.38965965]
[1755874983665,0.00012404,116580.0,116570.0,1.38957965]
[1755874983884,0.00012404,116580.0,116570.0,1.38914965]
[1755874984297,0.00012404,116580.0,116570.0,2.46955965]
[1755874984925,0.00012404,116580.0,116570.0,2.14231165]
[1755874985330,0.00012404,116580.0,116570.0,1.97204665]
[1755874985534,0.00012404,116580.0,116570.0,1.26406533]
[1755874985736,0.00012404,116580.0,116570.0,0.81845533]
[1755874985857,0.00012404,116580.0,116570.0,1.45195965]
[1755874986066,0.00012404,116580.0,116570.0,1.45506965]
[1755874986264,0.00012404,116580.0,116570.0,1.73680765]
[1755874986821,0.00012404,116580.0,116570.0,1.69637665]
[1755874987899,0.00064404,116580.0,116570.0,0.81320533]
[1755874988179,0.00012404,116580.0,116570.0,1.20631041]
[1755874988402,0.00064404,116580.0,116570.0,1.03473968]
[1755874988525,0.00064404,116580.0,116570.0,1.20209968]
[1755874988723,0.00064404,116580.0,116570.0,1.20631041]
[1755874988969,0.00064404,116580.0,116570.0,1.37367041]
[1755874989285,0.00064404,116580.0,116570.0,1.20209968]
[1755874989727,0.00064404,116580.0,116570.0,1.37367041]
[1755874989934,0.00012404,116580.0,116570.0,1.37367041]
[1755874990143,0.00012404,116580.0,116570.0,1.37892041]
[1755874990349,0.00012404,116580.0,116570.0,1.57892041]
[1755874990558,0.00012404,116580.0,116570.0,0.94238609]
[1755874990769,0.00064404,116580.0,116570.0,0.56556536]
[1755874990981,0.00064404,116580.0,116570.0,0.15960536]
[1755874991197,0.00064404,116580.0,116570.0,0.30114536]
[1755874991374,0.00064404,116580.0,116570.0,0.77031968]
[1755874991790,0.00064404,116580.0,116570.0,0.13382536]
[1755874991922,0.00096404,116580.0,116570.0,0.30110536]
[1755874992330,0.00196404,116580.0,116570.0,0.30110536]
[1755874992534,0.10196404,116580.0,116550.0,0.24334924]
[1755874992801,0.00268079,116570.0,116550.0,0.73271876]
[1755874992933,0.0041246,116580.0,116550.0,0.73271876]
[1755874993144,0.00052,116560.0,116550.0,0.60354444]
[1755874994686,0.00052,116560.0,116550.0,1.07271876]
[1755874994901,0.00052,116560.0,116550.0,0.00937969]
[1755874995104,0.00352102,116560.0,116540.0,0.20562902]
[1755874995311,0.00352102,116560.0,116540.0,0.29251377]
[1755874995596,0.00320102,116560.0,116540.0,0.76168809]
[1755874995789,0.16724,116570.0,116550.0,0.55605907]
[1755874995941,0.00268079,116570.0,116550.0,0.55605907]
[1755874996143,0.00012404,116580.0,116560.0,0.46917432]
[1755874996379,0.00012404,116580.0,116570.0,0.08688475]
[1755874996518,0.00600516,116580.0,116570.0,0.08688475]
[1755874996720,0.00600516,116580.0,116560.0,0.16724]
[1755874996938,0.00632516,116580.0,116560.0,0.25412475]
[1755874997147,0.002,116570.0,116560.0,0.08688475]
[1755874997350,0.00252,116570.0,116560.0,0.08688475]
[1755874997786,0.00252,116570.0,116550.0,0.51649226]
[1755874997787,0.00284,116570.0,116550.0,0.00925226]
[1755874998008,0.18940475,116570.0,116540.0,0.37838902]
[1755874998239,0.00032,116560.0,116530.0,0.27375877]
[1755874998467,0.63669432,116560.0,116530.0,0.19344352]
[1755874998654,0.00052,116540.0,116530.0,0.10655877]
[1755874998854,0.00052,116540.0,116520.0,0.11505877]
[1755874999031,0.00052,116540.0,116520.0,0.19344352]
[1755874999235,0.00084,116540.0,116520.0,0.1158744]
[1755874999436,0.00032,116530.0,116520.0,0.1158744]
[1755874999697,0.00032,116530.0,116510.0,0.10655877]
[1755874999698,0.00620342,116530.0,116510.0,0.10655877]
[1755875000003,0.00268171,116530.0,116520.0,0.00014458]
[1755875000144,0.00032,116550.0,116520.0,0.63189318]
[1755875000145,0.00318125,116550.0,116520.0,0.63189318]
[1755875000351,0.0058625,116550.0,116520.0,0.20786291]
[1755875000627,0.002,116540.0,116520.0,0.20786291]
[1755875000826,0.00046181,116540.0,116520.0,0.20282291]
[1755875001039,0.00052,116530.0,116520.0,0.11593816]
[1755875001210,0.00320171,116530.0,116520.0,0.00937939]
[1755875001438,0.10078181,116540.0,116520.0,0.09931414]
[1755875001439,0.00046181,116540.0,116520.0,0.09931414]
[1755875001559,0.00314329,116540.0,116520.0,0.09626414]
[1755875001765,0.00268148,116540.0,116520.0,0.56848846]
[1755875001962,0.0058625,116550.0,116530.0,0.56109907]
[1755875002215,0.0068625,116550.0,116530.0,0.08688475]
[1755875002374,0.00052,116540.0,116530.0,0.08688475]
[1755875002790,0.00052,116540.0,116520.0,0.45898816]
[1755875002982,0.00152,116540.0,116520.0,0.54282291]
[1755875003180,0.00152,116540.0,116520.0,0.43626414]
[1755875003380,0.00152,116540.0,116520.0,0.43931414]
[1755875003662,0.00052,116540.0,116520.0,0.54587291]
[1755875003867,0.00268125,116550.0,116520.0,0.54587291]
[1755875004081,0.0053625,116550.0,116520.0,0.54587291]
[1755875004557,0.16592,116570.0,116540.0,0.00199]
[1755875004772,0.16592,116570.0,116540.0,0.55804907]
[1755875004773,0.00268102,116560.0,116540.0,0.55804907]
[1755875005000,0.00268079,116570.0,116550.0,0.55910907]
[1755875005214,0.00052,116560.0,116550.0,0.42688475]
[1755875005424,0.00052,116560.0,116550.0,0.34]
[1755875005631,0.00268079,116570.0,116550.0,0.34]
[1755875006165,0.00268079,116570.0,116540.0,0.003438]
[1755875006166,0.00052,116560.0,116540.0,0.003438]
[1755875006389,0.00052,116560.0,116540.0,0.08688475]
[1755875006609,0.00052,116560.0,116530.0,0.10655877]
[1755875006838,0.00052,116560.0,116530.0,0.42688475]
[1755875007055,0.00320102,116560.0,116530.0,0.42688475]
[1755875007258,0.19008577,116560.0,116550.0,0.001]
[1755875007461,0.35456475,116560.0,116550.0,0.001]
[1755875008397,0.82405907,116560.0,116520.0,0.35242939]
[1755875008622,0.00268125,116550.0,116520.0,0.43931414]
[1755875008825,0.357046,116550.0,116540.0,0.001]
[1755875009001,0.35436475,116550.0,116540.0,0.001]
[1755875009206,0.35488475,116550.0,116540.0,0.001]
[1755875009405,0.35456475,116550.0,116540.0,0.001]
[1755875009785,0.35488475,116550.0,116540.0,0.001]
[1755875009996,0.35488475,116550.0,116520.0,0.00937939]
[1755875010195,0.00536296,116540.0,116520.0,0.00937939]
[1755875010525,0.00052,116530.0,116520.0,0.00014458]
[1755875010726,0.82405907,116530.0,116520.0,0.00014458]
[1755875011538,0.18740475,116530.0,116520.0,0.00014458]
[1755875011759,0.00052,116530.0,116520.0,0.00014458]
[1755875011956,0.00268171,116530.0,116520.0,0.00518458]
[1755875012232,0.00588342,116530.0,116520.0,0.00014458]
[1755875012440,0.47505774,116530.0,116520.0,0.00014458]
[1755875012722,0.65789907,116530.0,116520.0,0.00014458]
[1755875012931,0.16868,116530.0,116520.0,0.00014458]
[1755875013132,0.001,116530.0,116520.0,0.00014458]
[1755875013338,0.17084171,116530.0,116520.0,0.00014458]
[1755875013556,0.00368171,116530.0,116520.0,0.00518458]
[1755875013768,0.00636342,116530.0,116520.0,0.00014458]
[1755875014714,0.00588342,116530.0,116520.0,0.00014458]
[1755875015101,0.47505774,116530.0,116520.0,0.00014458]
[1755875015264,0.00052,116530.0,116520.0,0.00014458]
[1755875015466,0.17304342,116530.0,116520.0,0.00014458]
[1755875015667,0.66953603,116530.0,116520.0,0.00114458]
[1755875015873,0.19768,116530.0,116520.0,0.00114458]
[1755875016245,0.03,116530.0,116520.0,0.00114458]
[1755875016440,0.19984171,116530.0,116520.0,0.00114458]
[1755875016698,0.19716,116530.0,116520.0,0.00618458]
[1755875016902,0.19716,116530.0,116520.0,0.00313458]
[1755875017080,0.19716,116530.0,116520.0,0.00618458]
[1755875017289,0.03,116530.0,116520.0,0.00618458]
[1755875017555,0.20252342,116530.0,116520.0,0.00618458]
[1755875017687,0.19716,116530.0,116520.0,0.00618458]
[1755875018570,0.19716,116530.0,116520.0,0.09306933]
[1755875018571,0.03,116530.0,116520.0,0.09306933]
[1755875018763,0.03536342,116530.0,116520.0,0.09306933]
[1755875018982,0.03,116530.0,116520.0,0.60471368]
[1755875019183,0.03,116530.0,116520.0,1.073888]
[1755875019502,0.03,116530.0,116520.0,0.60471368]
[1755875019743,0.03,116530.0,116520.0,0.43306933]
[1755875019947,0.03,116530.0,116520.0,0.43206933]
[1755875020357,0.03,116530.0,116520.0,0.43406933]
[1755875021226,0.03,116530.0,116520.0,0.11986133]
[1755875021404,0.03,116530.0,116520.0,1.10068]
[1755875022028,0.02675,116530.0,116520.0,1.10068]
[1755875022227,0.02675,116530.0,116520.0,1.21612]
[1755875023292,0.02675,116530.0,116520.0,2.61579874]
[1755875027602,0.02675,116530.0,116520.0,1.10068]
[1755875027793,0.02675,116530.0,116520.0,0.79858568]
[1755875027997,0.02675,116530.0,116520.0,1.26776]
[1755875028760,0.02675,116530.0,116520.0,0.79858568]
[1755875028961,0.02675,116530.0,116520.0,1.10068]
[1755875029150,0.02675,116530.0,116520.0,1.26776]
[1755875029781,0.02675,116530.0,116520.0,1.26876]
[1755875030409,0.02675,116530.0,116520.0,0.85564475]
[1755875030588,0.02675,116530.0,116520.0,0.58688807]
[1755875030766,0.02675,116530.0,116520.0,0.92561242]
[1755875032440,0.02675,116530.0,116520.0,0.4593781]
[1755875032682,0.02675,116530.0,116520.0,1.26855242]
[1755875032870,0.02675,116530.0,116520.0,2.46823116]
[1755875033101,0.02675,116530.0,116520.0,2.66823116]
[1755875033305,0.02675,116530.0,116520.0,3.46378816]
[1755875033817,0.02675,116530.0,116520.0,1.61385942]
[1755875034029,0.02675,116530.0,116520.0,1.22162542]
[1755875034177,0.02675,116530.0,116520.0,1.38866542]
[1755875034583,0.02675,116530.0,116520.0,1.26557242]
[1755875034789,0.02675,116530.0,116520.0,0.62910447]
[1755875035027,0.02675,116530.0,116520.0,1.09092807]
[1755875035231,0.02675,116530.0,116520.0,1.26257242]
[1755875035433,0.02883,116530.0,116520.0,0.92584807]
[1755875035644,0.03193,116530.0,116520.0,0.62367375]
[1755875035993,0.03193,116530.0,116520.0,0.61967375]
[1755875036477,0.02675,116530.0,116520.0,1.26253242]
[1755875036694,0.02675,116530.0,116520.0,1.26547242]
[1755875036884,0.02675,116530.0,116520.0,0.7953581]
[1755875037019,0.02675,116530.0,116520.0,1.26453242]
[1755875037630,0.02675,116530.0,116520.0,1.26553242]
[1755875038219,0.02675,116530.0,116520.0,1.26353242]
[1755875038474,0.02675,116530.0,116520.0,0.7933581]
[1755875038678,0.02675,116530.0,116520.0,1.26353242]
[1755875039086,0.02675,116530.0,116520.0,1.26547242]
[1755875039486,0.02675,116530.0,116520.0,1.26349242]
[1755875040058,0.02675,116530.0,116520.0,1.26249242]
[1755875040262,0.02675,116530.0,116520.0,1.26543242]
[1755875040448,0.02675,116530.0,116520.0,3.88141716]
[1755875040645,0.02675,116530.0,116520.0,1.57854142]
[1755875041040,0.02675,116530.0,116520.0,1.58704142]
[1755875041246,0.02675,116530.0,116520.0,2.98672016]
[1755875041448,0.00268056,116580.0,116530.0,0.18019871]
[1755875041656,0.00268056,116580.0,116540.0,0.43404029]
[1755875042061,0.00268056,116580.0,116550.0,0.1817528]
[1755875042305,0.00268056,116580.0,116550.0,0.58184307]
[1755875042481,0.00268056,116580.0,116550.0,0.76496017]
[1755875042678,0.00208,116560.0,116550.0,0.11266875]
[1755875042882,0.00268056,116580.0,116550.0,0.29646245]
[1755875043117,0.00268056,116580.0,116570.0,0.46917432]
[1755875043352,0.0236859,116590.0,116570.0,0.64278438]
[1755875043474,0.00308,116580.0,116560.0,0.25674475]
[1755875043707,0.0031,116570.0,116560.0,0.08688475]
[1755875043900,0.00208,116570.0,116550.0,0.23943896]
[1755875044106,0.00208,116570.0,116550.0,0.88315341]
[1755875044369,0.00222452,116570.0,116550.0,0.41397909]
[1755875044569,0.00222452,116570.0,116550.0,0.15940371]
[1755875044720,0.00800531,116570.0,116550.0,0.23947896]
[1755875045098,0.00490531,116570.0,116550.0,0.50090388]
[1755875045303,0.00014452,116570.0,116560.0,0.09343798]
[1755875045554,0.00014452,116570.0,116560.0,0.09186475]
[1755875045712,0.00014452,116570.0,116560.0,0.60502326]
[1755875045918,0.00014452,116570.0,116560.0,1.07262451]
[1755875046226,0.00014452,116570.0,116560.0,0.60345019]
[1755875046430,0.00014452,116570.0,116560.0,0.96851419]
[1755875046643,0.00014452,116570.0,116560.0,1.43768851]
[1755875046924,0.00014452,116570.0,116560.0,1.16851419]
[1755875047364,0.00014452,116570.0,116560.0,0.60256475]
[1755875047582,0.00014452,116570.0,116560.0,1.07859719]
[1755875047786,0.00014452,116570.0,116560.0,0.77709019]
[1755875047992,0.00014452,116570.0,116560.0,1.39899751]
[1755875048198,4.3122084,116500.0,116490.0,0.23218186]
[1755875048341,4.3122084,116500.0,116490.0,5.63342886]
[1755875048544,4.11247878,116500.0,116490.0,5.83818962]
[1755875048742,3.90475326,116500.0,116490.0,5.89723361]
[1755875048950,3.78670093,116500.0,116490.0,5.95085537]
[1755875049348,3.67692622,116500.0,116490.0,5.95085537]
[1755875049556,3.67692622,116500.0,116490.0,5.72301461]
[1755875049756,3.66833837,116500.0,116490.0,6.49188631]
[1755875050214,3.66833837,116500.0,116490.0,6.72223707]
[1755875050215,3.65975052,116500.0,116490.0,6.72223707]
[1755875050337,2.95688267,116500.0,116490.0,7.92191581]
[1755875050534,2.05555187,116500.0,116490.0,8.45070696]
[1755875050734,1.91691643,116500.0,116490.0,8.45070696]
[1755875050936,1.56892869,116500.0,116490.0,8.45070696]
[1755875051144,1.51271767,116500.0,116490.0,7.87264962]
[1755875051349,1.50512982,116500.0,116490.0,7.90308962]
[1755875051580,1.47507233,116500.0,116490.0,8.13101745]
[1755875051783,1.44694394,116500.0,116490.0,8.10584087]
[1755875051990,1.44694394,116500.0,116490.0,6.41399656]
[1755875052193,1.44694394,116500.0,116490.0,6.44463631]
[1755875052194,1.4082986,116500.0,116490.0,6.44463631]
[1755875052594,1.40071075,116500.0,116490.0,6.25583631]
[1755875052796,1.40071075,116500.0,116490.0,5.81650199]
[1755875053081,1.39871075,116500.0,116490.0,5.50484631]
[1755875053510,1.39871075,116500.0,116490.0,5.52229533]
[1755875053712,1.39871075,116500.0,116490.0,5.39312101]
[1755875053915,1.39871075,116500.0,116490.0,5.52229533]
[1755875054198,1.39871075,116500.0,116490.0,5.67229533]
[1755875054401,1.39871075,116500.0,116490.0,6.01229533]
[1755875054595,1.3901229,116500.0,116490.0,7.43719065]
[1755875054798,1.3901229,116500.0,116490.0,7.45866265]
[1755875055088,1.3901229,116500.0,116490.0,5.55212101]
[1755875055089,1.3815323,116500.0,116490.0,5.55212101]
[1755875055281,1.3825323,116500.0,116490.0,6.02129533]
[1755875055502,1.3739417,116500.0,116490.0,7.22097407]
[1755875055694,0.12113315,116500.0,116490.0,7.45866265]
[1755875055909,1e-08,116500.0,116490.0,6.2837134]
[1755875056133,0.0005,116550.0,116540.0,0.91161489]
[1755875056346,0.00064447,116550.0,116540.0,4.10086666]
[1755875056553,0.00064447,116550.0,116540.0,1.57797964]
[1755875056753,0.00064447,116550.0,116540.0,0.88539764]
[1755875056754,0.00582447,116550.0,116540.0,0.88539764]
[1755875056969,0.20582447,116550.0,116540.0,0.67356475]
[1755875057210,0.20532447,116550.0,116540.0,0.79765975]
[1755875057441,0.20532447,116550.0,116540.0,0.84517964]
[1755875057650,0.10014447,116550.0,116540.0,0.95874064]
[1755875057889,0.00014447,116550.0,116540.0,1.62791496]
[1755875058116,0.00014447,116550.0,116540.0,1.86662102]
[1755875058337,0.00014447,116550.0,116540.0,1.41489572]
[1755875058539,0.00014447,116550.0,116540.0,1.21565572]
[1755875058767,0.00014447,116550.0,116540.0,1.21865572]
[1755875059412,0.00014447,116550.0,116540.0,1.21565572]
[1755875059621,0.00014447,116550.0,116540.0,1.68883004]
[1755875059824,0.00014447,116550.0,116540.0,1.45551572]
[1755875060257,0.00014447,116550.0,116540.0,1.92077004]
[1755875060477,0.00014447,116550.0,116540.0,1.45659572]
[1755875060683,0.00014447,116550.0,116540.0,1.92577004]
[1755875060894,0.00534447,116550.0,116540.0,1.12503572]
[1755875061094,0.00326447,116550.0,116540.0,1.30643572]
[1755875061453,0.00014447,116550.0,116540.0,1.30643572]
[1755875061647,0.00014447,116550.0,116540.0,1.30143572]
[1755875062048,0.10534447,116550.0,116540.0,0.5026267]
[1755875062378,0.20534447,116550.0,116540.0,0.4097207]
[1755875062644,0.20534447,116550.0,116540.0,0.9567827]
[1755875062817,0.20534447,116550.0,116540.0,0.33865281]
[1755875063038,0.20534447,116550.0,116540.0,0.60180081]
[1755875063391,0.20534447,116550.0,116540.0,0.5083477]
[1755875063593,0.10534447,116550.0,116540.0,0.5083477]
[1755875063802,0.20534447,116550.0,116540.0,0.8483477]
[1755875064007,0.10534447,116550.0,116540.0,0.8483477]
[1755875064426,0.00014447,116550.0,116540.0,1.51752202]
[1755875064632,0.00014447,116550.0,116540.0,1.0483477]
[1755875064809,0.00014447,116550.0,116540.0,1.53097104]
[1755875065025,0.00014447,116550.0,116540.0,1.06179672]
[1755875065240,0.00014447,116550.0,116540.0,1.53497104]
[1755875065379,0.00014447,116550.0,116540.0,1.06579672]
[1755875065565,0.00014447,116550.0,116540.0,4.44445272]
[1755875065919,0.00014447,116550.0,116540.0,2.27716772]
[1755875066076,0.00014447,116550.0,116540.0,2.38688399]
[1755875066494,0.00014447,116550.0,116540.0,2.85601831]
[1755875066723,0.00014447,116550.0,116540.0,2.85617831]
[1755875067096,0.00014447,116550.0,116540.0,2.38200399]
[1755875067292,0.00014447,116550.0,116540.0,2.85117831]
[1755875067717,0.00014447,116550.0,116540.0,2.38200399]
[1755875068568,0.00014447,116550.0,116540.0,2.38600399]
[1755875069119,0.00014447,116550.0,116540.0,3.20517831]
[1755875069325,0.12412557,116590.0,116580.0,0.17155601]
[1755875069326,0.69329989,116590.0,116580.0,0.17155601]
[1755875069563,0.22635009,116590.0,116580.0,0.44032076]
[1755875069942,0.69552441,116590.0,116580.0,0.44032076]
[1755875070256,0.59552441,116590.0,116580.0,0.30724883]
[1755875070483,0.69552441,116590.0,116580.0,0.15114283]
[1755875070701,0.69552441,116590.0,116580.0,0.64712883]
[1755875071365,0.69552441,116590.0,116580.0,0.64704883]
[1755875071952,0.69552441,116590.0,116580.0,0.81960484]
[1755875072152,0.12635009,116590.0,116580.0,0.81960484]
[1755875072365,0.12427009,116590.0,116580.0,0.81960484]
[1755875072544,0.12427009,116590.0,116580.0,0.81860484]
[1755875072545,0.22635009,116590.0,116580.0,0.81860484]
[1755875072766,0.69652441,116590.0,116580.0,0.81860484]
[1755875073003,0.22735009,116590.0,116580.0,0.81860484]
[1755875073342,0.69552441,116590.0,116580.0,0.81860484]
[1755875073548,0.22635009,116590.0,116580.0,0.64700883]
[1755875073756,0.69552441,116590.0,116580.0,0.81856484]
[1755875074103,0.69552441,116590.0,116580.0,0.64700883]
[1755875074460,0.69552441,116590.0,116580.0,0.81856484]
[1755875074786,0.69552441,116590.0,116580.0,0.64700883]
[1755875075262,0.69552441,116590.0,116580.0,0.46536883]
[1755875075412,0.69552441,116590.0,116580.0,0.64668883]
[1755875075849,0.22635009,116590.0,116580.0,0.64668883]
[1755875076043,0.69552441,116590.0,116580.0,0.64660883]
[1755875076392,0.69552441,116590.0,116580.0,0.46536883]
[1755875076508,0.69552441,116590.0,116570.0,0.025776]
[1755875076509,0.2,116580.0,116570.0,0.025776]
[1755875076713,0.67437432,116580.0,116570.0,0.29374075]
[1755875077224,0.2052,116580.0,116570.0,0.43953548]
[1755875077420,0.2052,116580.0,116570.0,0.46531348]
[1755875077624,0.20312,116580.0,116570.0,0.80531348]
[1755875077896,0.20312,116580.0,116570.0,1.63622348]
[1755875078129,0.2,116580.0,116570.0,1.56300348]
[1755875078331,0.2052,116580.0,116570.0,1.14210948]
[1755875078532,0.2052,116580.0,116570.0,0.92847948]
[1755875078862,0.2052,116580.0,116570.0,0.73830875]
[1755875079067,0.2052,116580.0,116570.0,0.94796486]
[1755875079322,0.1052,116580.0,116570.0,0.94796486]
[1755875079523,0.22115009,116590.0,116580.0,0.51155601]
[1755875079679,0.22323009,116590.0,116580.0,0.59844076]
[1755875079879,0.22323009,116590.0,116580.0,0.42688475]
[1755875080157,0.12635009,116590.0,116580.0,0.79844076]
[1755875080421,0.12427009,116590.0,116580.0,0.79844076]
[1755875080620,0.02115009,116590.0,116580.0,0.79844076]
[1755875081242,0.12115009,116590.0,116580.0,1.28984076]
[1755875081494,0.02115009,116590.0,116580.0,1.28984076]
[1755875081699,0.12115009,116590.0,116580.0,1.29084076]
[1755875082512,0.02115009,116590.0,116580.0,1.29084076]
[1755875082743,0.12115009,116590.0,116580.0,1.29084076]
[1755875083281,0.12115009,116590.0,116580.0,1.47164076]
[1755875083483,0.02115009,116590.0,116580.0,1.47148076]
[1755875083700,0.02115009,116590.0,116580.0,1.29084076]
[1755875084052,0.12427009,116590.0,116580.0,1.47140076]
[1755875084258,0.02115009,116590.0,116580.0,1.47140076]
[1755875085184,0.02115009,116590.0,116580.0,1.9580241]
[1755875085362,0.01256221,116590.0,116580.0,2.1080241]
[1755875085730,0.01256221,116590.0,116580.0,2.1078641]
[1755875085907,0.01256221,116590.0,116580.0,1.29084076]
[1755875086106,0.01256221,116590.0,116580.0,1.47112076]
[1755875086322,0.01256221,116590.0,116580.0,1.47012076]
[1755875086533,0.01256221,116590.0,116580.0,1.93929508]
[1755875087280,0.01256221,116590.0,116580.0,1.75901508]
[1755875087689,0.01555221,116590.0,116580.0,1.93901508]
[1755875087888,0.01555221,116590.0,116580.0,1.94201508]
[1755875088095,0.01555221,116590.0,116580.0,1.54136408]
[1755875088296,0.01760221,116590.0,116580.0,1.29274208]
[1755875088498,0.11760221,116590.0,116580.0,1.47254208]
[1755875088682,0.11760221,116590.0,116580.0,1.00332776]
[1755875088881,0.11760221,116590.0,116580.0,1.47250208]
[1755875089092,0.11256221,116590.0,116580.0,1.29913308]
[1755875089289,0.11461221,116590.0,116580.0,0.99241876]
[1755875089501,0.11760221,116590.0,116580.0,1.46159308]
[1755875089701,0.11760221,116590.0,116580.0,0.99241876]
[1755875089908,0.11256221,116590.0,116580.0,0.99241876]
[1755875090081,0.11256221,116590.0,116580.0,1.46159308]
[1755875090892,0.01256221,116590.0,116580.0,1.28187308]
[1755875091556,0.01760221,116590.0,116580.0,1.46115308]
[1755875092172,0.01760221,116590.0,116580.0,0.60144076]
[1755875092173,0.21760221,116590.0,116580.0,0.60144076]
[1755875092373,0.21760221,116590.0,116580.0,0.003]
[1755875092575,0.2,116580.0,116570.0,0.025778]
[1755875092786,0.2,116570.0,116560.0,0.17912]
[1755875093010,0.20504,116570.0,116560.0,0.29178575]
[1755875093440,0.19108297,116570.0,116560.0,0.29178575]
[1755875093851,0.19108297,116570.0,116560.0,0.45266575]
[1755875094058,0.19108297,116570.0,116560.0,0.63206575]
[1755875095084,0.19108297,116570.0,116560.0,0.45266575]
[1755875095534,0.19108297,116570.0,116560.0,0.63202575]
[1755875095740,0.19108297,116570.0,116560.0,0.60624475]
[1755875095944,0.19108297,116570.0,116560.0,0.77783019]
[1755875096360,0.19108297,116570.0,116560.0,0.42688475]
[1755875096565,0.19108297,116570.0,116560.0,0.60616475]
[1755875096776,0.19108297,116570.0,116560.0,0.42688475]
[1755875096952,0.19108297,116570.0,116560.0,0.60600475]
[1755875097165,0.19108297,116570.0,116560.0,0.77759019]
[1755875097692,0.19108297,116570.0,116560.0,0.60600475]
[1755875097866,0.19108297,116570.0,116560.0,0.77759019]
[1755875098277,0.18809297,116570.0,116560.0,0.77759019]
[1755875098467,0.19108297,116570.0,116560.0,0.60600475]
[1755875098656,0.09108297,116570.0,116560.0,1.24676451]
[1755875098851,0.19108297,116570.0,116560.0,1.24676451]
[1755875099151,0.09108297,116570.0,116560.0,1.24676451]
[1755875099352,0.19108297,116570.0,116560.0,1.07517907]
[1755875099780,0.19108297,116570.0,116560.0,0.60572475]
[1755875099984,0.19108297,116570.0,116560.0,0.61483316]
[1755875100136,0.19108297,116570.0,116560.0,0.61487316]
[1755875100338,0.19108297,116570.0,116560.0,0.34910841]
[1755875100569,0.19108297,116570.0,116560.0,0.52794841]
[1755875101230,0.18604297,116550.0,116540.0,0.57753489]
[1755875101387,0.18809297,116550.0,116540.0,1.03961175]
[1755875101767,0.18809297,116550.0,116540.0,1.50926644]
[1755875101768,0.18604297,116550.0,116540.0,1.50926644]
[1755875101980,0.08809297,116550.0,116540.0,0.86636723]
[1755875102187,0.08604297,116550.0,116540.0,1.50926644]
[1755875102400,0.18604297,116560.0,116540.0,1.51226644]
[1755875102602,0.08604297,116560.0,116550.0,2.68137593]
[1755875102774,0.18604297,116570.0,116560.0,0.34]
[1755875102987,0.19108297,116570.0,116560.0,0.77763019]
[1755875103237,0.19108297,116570.0,116560.0,0.60608475]
[1755875103667,0.19108297,116570.0,116560.0,0.77978019]
[1755875103668,0.18604297,116570.0,116560.0,0.77978019]
[1755875103883,0.18604297,116570.0,116560.0,1.24895451]
[1755875104088,0.1,116570.0,116560.0,2.45479951]
[1755875104311,0.01256221,116590.0,116580.0,0.17155601]
[1755875104537,0.01256221,116590.0,116580.0,3.93965423]
[1755875104752,0.01256221,116590.0,116580.0,2.47601908]
[1755875104966,0.01256221,116590.0,116580.0,1.74995008]
[1755875105190,0.09860518,116590.0,116580.0,1.02725276]
[1755875105395,0.09860518,116590.0,116580.0,1.02936276]
[1755875105628,0.09860518,116590.0,116580.0,1.49853708]
[1755875105629,0.01256221,116590.0,116580.0,1.49853708]
[1755875105846,0.10065518,116590.0,116580.0,0.33649675]
[1755875106055,0.20632551,116590.0,116580.0,0.08688475]
[1755875106266,0.20966506,116590.0,116580.0,0.10707969]
[1755875106471,0.20966506,116590.0,116580.0,0.03831015]
[1755875106896,0.18604297,116560.0,116550.0,0.10547714]
[1755875107173,0.19710285,116560.0,116550.0,0.97243989]
[1755875107348,0.19710285,116560.0,116550.0,1.44161421]
[1755875107519,0.19710285,116560.0,116550.0,0.95109489]
[1755875107881,0.19206285,116560.0,116550.0,1.59186938]
[1755875108120,0.19206285,116560.0,116550.0,1.59397938]
[1755875108297,0.00601988,116560.0,116550.0,1.93697938]
[1755875108510,0.00601988,116560.0,116550.0,2.13697938]
[1755875108712,0.00601988,116560.0,116550.0,2.13397938]
[1755875108913,0.00601988,116560.0,116550.0,2.13697938]
[1755875109278,0.00601988,116560.0,116550.0,2.25971496]
[1755875109496,0.19860518,116590.0,116580.0,0.17155601]
[1755875109848,0.11256221,116590.0,116580.0,2.09951934]
[1755875110028,0.19860518,116590.0,116580.0,1.61551419]
[1755875110901,0.11256221,116590.0,116580.0,1.61551419]
[1755875111103,0.01256221,116590.0,116580.0,1.61551419]
[1755875111277,0.01256221,116590.0,116580.0,2.81519293]
[1755875111475,0.01256221,116590.0,116580.0,1.61851419]
[1755875111938,0.01256221,116590.0,116580.0,1.14933987]